[Event "WSTCC-50 2024"]
[Site "Krakow"]
[Date "2024.07.03"]
[Round "2.8"]
[White "Tsodikova, Natalia"]
[Black "Davies, Nigel R"]
[Result "1/2-1/2"]
[ECO "B40"]
[WhiteElo "2019"]
[BlackElo "2325"]
[Annotator "TA"]
[PlyCount "71"]
[EventDate "2024.07.01"]
[EventType "team-tourn"]
[EventCountry "POL"]
[SourceTitle "playchess.com"]
[Source "ChessBase"]
[SourceQuality "1"]
[TimeControl "40/5400+30:1800+30"]

{[%evp 9,71,4,15,6,20,16,18,0,0,0,5,-10,20,20,23,0,0,13,27,13,91,72,73,11,20,0,0,0,0,0,0,0,0,-9,-7,-19,-25,-72,-72,-119,0,0,0,0,0,-72,-72,-72,-72,-72,-72,-72,-72,-72,-72,-72,-72,-72,-72,-72,0,0,0,-72]} 1. e4 {[%emt 0:00:03]} c5 {[%emt 0:00:32]} 2. Nf3 {[%emt 0:00:12]} e6 {[%emt 0:00:06]} 3. b3 {[%emt 0:00:10]} b6 {[%emt 0:00:08]} 4. Bb2 {[%emt 0:00:18]} Bb7 {[%emt 0:00:06]} 5. Nc3 {[%emt 0:00:29]} Nf6 {[%emt 0:05:35]} 6. e5 {[%emt 0:03:27]} Ne4 {[%emt 0:01:03]} 7. Nxe4 {[%emt 0:06:19]} Bxe4 {[%emt 0:00:10]} 8. d3 {[%emt 0:04:17]} Bxf3 {[%emt 0:08:42]} 9. Qxf3 {[%emt 0:00:32]} Nc6 {[%emt 0:00:06]} 10. O-O-O {[%emt 0:07:34]} g6 {[%emt 0:03:30]} 11. Qe4 {[%emt 0:06:16]} Bg7 {[%emt 0:01:37]} 12. g3 {[%emt 0:05:20]} Rc8 {[%emt 0:00:42]} 13. f4 {[%emt 0:05:15]} f6 {[%emt 0:08:52]} 14. h4 {[%emt 0:02:32]} f5 {[%emt 0:17:55]} (14... fxe5 $11 15. h5 O-O (15... d5 16. Qe2 $14)) 15. Qe3 {[%emt 0:05:07]} h5 {[%emt 0:00:47]} 16. Bg2 {[%emt 0:01:03]} ({White should play} 16. d4 $16 {Threatens to win with d5.} cxd4 17. Bxd4) 16... Kf7 $11 {[%emt 0:00:48]} 17. Kb1 {[%emt 0:05:32]} d5 {[%emt 0:01:20]} 18. exd6 {[%emt 0:04:11]} Nd4 {[%emt 0:05:22]} 19. Rhe1 {[%emt 0:04:19] [#] Strongly threatening Bxd4.} (19. c3 $5 Nb5 $8 20. d4 (20. Bb7 Rb8 $11) 20... cxd4 21. cxd4 Qxd6 22. d5 $14) 19... Qxd6 {[%emt 0:00:17]} 20. c3 {[%emt 0:01:26]} Nb5 {[%emt 0:00:59]} 21. Qd2 {[%emt 0:04:07]} Rhd8 {[%emt 0:01:57]} 22. a4 {[%emt 0:01:15]} Nc7 {[%emt 0:00:14]} 23. c4 {[%emt 0:03:12]} (23. d4 $11 {was preferrable.}) 23... Bd4 {[%emt 0:04:23]} 24. Qe2 {[%emt 0:01:29] [#]} (24. Bxd4 $142 Qxd4 25. Qb2) 24... a6 {[%emt 0:03:30]} (24... Qe7 $1 $17 25. Bb7 Rb8) 25. Bxd4 {[%emt 0:01:57]} Qxd4 {[%emt 0:01:19]} 26. Qe5 {[%emt 0:00:49] Wards off Rb8} a5 {[%emt 0:02:28]} 27. Bb7 {[%emt 0:02:01]} (27. Bc6 $1 $11 {keeps the balance.}) 27... Qxe5 $17 {[%emt 0:01:30]} 28. Rxe5 {[%emt 0:00:47]} Rb8 {[%emt 0:00:07]} 29. Bg2 {[%emt 0:00:39]} Na6 {[%emt 0:01:06]} 30. Kc2 {[%emt 0:00:30]} Rd6 {[%emt 0:00:31]} 31. Kc3 {[%emt 0:00:59]} Rbd8 {[%emt 0:00:17]} 32. Re3 {[%emt 0:01:03]} Kf6 {[%emt 0:01:19]} 33. Rd2 {[%emt 0:01:17]} Nb4 {[%emt 0:00:27]} 34. Rd1 {[%emt 0:01:18]} Na2+ {[%emt 0:01:05]} 35. Kb2 $1 {[%emt 0:00:41]} Nb4 {[%emt 0:00:07][%cal Rd6d3]} 36. Kc3 $1 {[%emt 0:00:06] Weighted Error Value: White=0.13 (very precise) /Black=0.15 (very precise) .  Mistake:       	White=4     	Black=2      Inaccurate:     	---       	Black=1      OK:         	White=4     	Black=17     Best:        	---       	Black=2      Strong:       	White=2     	---} 1/2-1/2

[Event "WSTCC-50 2024"]
[Site "Krakow"]
[Date "2024.07.03"]
[Round "2.8"]
[White "Fink-Nunn, Petra"]
[Black "Kantorik, Marian"]
[Result "1/2-1/2"]
[ECO "C11"]
[WhiteElo "1947"]
[BlackElo "2198"]
[Annotator "RC"]
[PlyCount "53"]
[EventDate "2024.07.01"]
[EventType "team-tourn"]
[EventCountry "POL"]
[SourceTitle "playchess.com"]
[Source "ChessBase"]
[SourceQuality "1"]
[TimeControl "40/5400+30:1800+30"]

1. e4 {[%emt 0:00:05]} e6 {[%emt 0:00:48]} 2. d4 {[%emt 0:00:11]} d5 {[%emt 0:00:41]} 3. Nc3 {[%emt 0:00:20]} Nf6 {[%emt 0:00:17]} 4. e5 {[%emt 0:00:41]} Nfd7 {[%emt 0:00:07]} 5. f4 {[%emt 0:00:12]} c5 {[%emt 0:00:14]} 6. Nf3 {[%emt 0:00:10]} Nc6 {[%emt 0:00:30]} 7. Be3 {[%emt 0:00:18]} a6 {[%emt 0:00:18]} 8. Qd2 {[%emt 0:04:16]} b5 {[%emt 0:00:12]} 9. dxc5 {[%emt 0:00:43]} Bxc5 {[%emt 0:00:17]} 10. O-O-O {[%emt 0:13:58]} Qb6 {[%emt 0:10:06]} 11. Bxc5 {[%emt 0:05:39]} Nxc5 {[%emt 0:01:02]} 12. Nd4 {[%emt 0:01:27]} b4 {[%emt 0:02:22]} 13. Nce2 {[%emt 0:20:51]} Ne4 {[%emt 0:04:54]} 14. Qe3 {[%emt 0:05:38]} Bb7 {[%emt 0:32:23]} 15. Ng3 {[%emt 0:02:48]} O-O-O {[%emt 0:05:56]} 16. Nxe4 {[%emt 0:13:58]} dxe4 {[%emt 0:00:21]} 17. Nf5 {[%emt 0:01:49]} Rxd1+ {[%emt 0:05:51]} 18. Kxd1 {[%emt 0:00:01]} Rd8+ {[%emt 0:00:16]} 19. Kc1 {[%emt 0:00:08]} Qxe3+ {[%emt 0:07:44]} 20. Nxe3 {[%emt 0:00:03]} f6 {[%emt 0:03:18]} 21. Bc4 {[%emt 0:09:22]} fxe5 {[%emt 0:01:57]} 22. Bxe6+ {[%emt 0:00:04]} Kc7 {[%emt 0:00:49]} 23. fxe5 {[%emt 0:08:00]} Nxe5 {[%emt 0:00:15]} 24. Rd1 {[%emt 0:01:39]} Rxd1+ {[%emt 0:06:06]} 25. Kxd1 {[%emt 0:00:05]} a5 {[%emt 0:03:06]} 26. Bg8 {[%emt 0:02:52]} h5 {[%emt 0:06:58]} 27. Ke2 {[%emt 0:00:13]} 1/2-1/2

[Event "WSTCC-50 2024"]
[Site "Krakow"]
[Date "2024.07.03"]
[Round "2.8"]
[White "Schutte, Andre"]
[Black "Csom, Etelka"]
[Result "1/2-1/2"]
[ECO "B01"]
[WhiteElo "1817"]
[BlackElo "1996"]
[Annotator "NA RC"]
[PlyCount "69"]
[EventDate "2024.07.01"]
[EventType "team-tourn"]
[EventCountry "POL"]
[SourceTitle "playchess.com"]
[Source "ChessBase"]
[SourceQuality "1"]
[TimeControl "40/5400+30:1800+30"]

1. e4 {[%emt 0:00:11]} d5 {[%emt 0:00:10]} 2. exd5 {[%emt 0:00:27]} Nf6 {[%emt 0:00:20]} 3. Nc3 {[%emt 0:01:44]} Nxd5 {[%emt 0:00:33]} 4. Nxd5 {[%emt 0:00:38]} Qxd5 {[%emt 0:00:09]} 5. d4 {[%emt 0:04:04]} Nc6 {[%emt 0:01:42]} 6. c3 {[%emt 0:00:12]} e5 {[%emt 0:02:35]} 7. Qe2 {[%emt 0:06:53]} Be6 {[%emt 0:02:22]} 8. dxe5 {[%emt 0:07:26]} Nxe5 {[%emt 0:02:35]} 9. Qb5+ {[%emt 0:01:13]} Qxb5 {[%emt 0:01:19]} 10. Bxb5+ {[%emt 0:00:09]} c6 {[%emt 0:00:18]} 11. Be2 {[%emt 0:00:07]} Bc5 {[%emt 0:06:40]} 12. Nf3 {[%emt 0:03:46]} Nxf3+ {[%emt 0:01:12]} 13. Bxf3 {[%emt 0:00:08]} O-O {[%emt 0:00:26]} 14. O-O {[%emt 0:00:24]} Rad8 {[%emt 0:00:46]} 15. b4 {[%emt 0:06:57]} Bb6 {[%emt 0:01:09]} 16. a4 {[%emt 0:01:25]} Bc4 {[%emt 0:06:42]} 17. Re1 {[%emt 0:01:06]} Rfe8 {[%emt 0:00:51]} 18. Bf4 {[%emt 0:01:34]} a5 {[%emt 0:06:29]} 19. Rxe8+ {[%emt 0:13:05]} Rxe8 {[%emt 0:00:17]} 20. b5 {[%emt 0:00:02]} cxb5 {[%emt 0:09:34]} 21. axb5 {[%emt 0:06:41]} Bxb5 {[%emt 0:01:32]} 22. Bxb7 {[%emt 0:01:29]} Re2 {[%emt 0:06:05]} 23. Be3 {[%emt 0:00:34]} Bxe3 {[%emt 0:12:45]} 24. fxe3 {[%emt 0:00:07]} Kf8 {[%emt 0:05:51]} 25. Rxa5 {[%emt 0:01:05]} Bd3 {[%emt 0:00:40]} 26. Bd5 {[%emt 0:05:39]} Rxe3 {[%emt 0:01:31]} 27. c4 {[%emt 0:01:59]} Re5 {[%emt 0:03:24]} 28. Ra8+ {[%emt 0:03:29]} Re8 {[%emt 0:00:39]} 29. Ra7 {[%emt 0:00:12]} Re7 {[%emt 0:00:32]} 30. Ra8+ {[%emt 0:00:40]} Re8 {[%emt 0:00:01]} 31. Rxe8+ {[%emt 0:00:28]} Kxe8 {[%emt 0:00:02]} 32. Kf2 {[%emt 0:00:07]} Ke7 {[%emt 0:01:01]} 33. Ke3 {[%emt 0:00:09]} Bf1 {[%emt 0:01:45]} 34. Kd4 {[%emt 0:02:38]} Kd6 {[%emt 0:00:17]} 35. g3 {[%emt 0:03:05]} 1/2-1/2

[Event "WSTCC-50 2024"]
[Site "Krakow"]
[Date "2024.07.03"]
[Round "2.9"]
[White "Krause, Ullrich"]
[Black "Olafsson, Helgi"]
[Result "1/2-1/2"]
[ECO "A05"]
[WhiteElo "2171"]
[BlackElo "2466"]
[Annotator "TA"]
[PlyCount "106"]
[EventDate "2024.07.01"]
[EventType "team-tourn"]
[EventCountry "POL"]
[SourceTitle "playchess.com"]
[Source "ChessBase"]
[SourceQuality "1"]
[TimeControl "40/5400+30:1800+30"]

{[%evp 9,106,15,48,44,37,27,33,10,16,13,16,15,29,0,-4,-8,0,-2,0,-18,0,0,0,-8,-8,-17,-17,-22,-23,-8,-27,-14,-16,-21,-21,-23,-15,-6,-6,-6,-8,-8,-1,-4,-2,-1,0,-10,-1,-9,-9,-8,-7,-10,-1,-1,-1,-1,-1,-1,-1,-1,-1,-1,-1,-1,-1,-1,-1,-1,-1,-1,-1,-1,-1,-1,-1,-1,0,-1,0,0,0,0,0,0,0,0,0,0,0,0,0,0,0,0,0,0,0]} 1. Nf3 {[%emt 0:00:04]} Nf6 {[%emt 0:00:29]} 2. c4 {[%emt 0:00:21]} b6 {[%emt 0:00:26]} 3. Nc3 {[%emt 0:01:46]} Bb7 {[%emt 0:00:24]} 4. e3 {[%emt 0:00:26]} g6 {[%emt 0:03:56]} 5. d4 {[%emt 0:05:23]} d5 {[%emt 0:02:58]} 6. cxd5 {[%emt 0:01:20]} Nxd5 {[%emt 0:00:06]} 7. Bb5+ {[%emt 0:03:21]} c6 {[%emt 0:01:05] [#] aiming for ...Nxc3.} 8. Bd3 {[%emt 0:00:37] White is slightly better.} Bg7 {[%emt 0:00:32]} 9. Nxd5 {[%emt 0:04:53]} cxd5 {[%emt 0:00:18]} 10. Bb5+ {[%emt 0:02:31]} Bc6 {[%emt 0:03:57]} 11. Qa4 {[%emt 0:04:57]} Qd7 {[%emt 0:10:41]} 12. Bxc6 {[%emt 0:03:13]} Nxc6 {[%emt 0:04:48]} 13. Bd2 {[%emt 0:01:08]} O-O {[%emt 0:00:58]} 14. O-O {[%emt 0:03:01]} Rac8 {[%emt 0:10:28]} 15. Rac1 {[%emt 0:10:38]} Rc7 {[%emt 0:01:03][%cal Oc6d4]} 16. Kh1 {[%emt 0:08:09]} Rfc8 {[%emt 0:00:48]} 17. Qb5 {[%emt 0:11:05]} e5 {[%emt 0:07:26]} 18. dxe5 {[%emt 0:02:02]} Nxe5 {[%emt 0:00:12]} 19. Qxd7 {[%emt 0:00:17]} Nxd7 {[%emt 0:00:09]} 20. Rxc7 {[%emt 0:01:24]} Rxc7 {[%emt 0:00:15]} 21. Rc1 $1 {[%emt 0:02:29]} Rxc1+ {[%emt 0:02:00]} 22. Bxc1 $11 {[%emt 0:00:11][%mdl 4096] Endgame. KBN-KBN} Nc5 {[%emt 0:00:02]} 23. Ne1 {[%emt 0:01:19] Dodges Nd3. The position is equal.} d4 {[%emt 0:00:53]} 24. exd4 {[%emt 0:02:15]} Bxd4 {[%emt 0:00:06]} 25. Kg1 {[%emt 0:00:51]} f5 {[%emt 0:00:10]} 26. Kf1 {[%emt 0:02:01]} Kf7 {[%emt 0:01:10]} 27. Ke2 {[%emt 0:04:04]} Ke6 {[%emt 0:00:38]} 28. f3 {[%emt 0:03:02]} Kd5 {[%emt 0:01:18]} 29. b3 {[%emt 0:02:56]} Be5 {[%emt 0:02:16]} 30. h3 {[%emt 0:01:18]} Ne6 {[%emt 0:00:07]} 31. Nc2 {[%emt 0:07:52]} Nd4+ {[%emt 0:01:12]} 32. Nxd4 {[%emt 0:00:59]} Bxd4 {[%emt 0:00:05] KB-KB} 33. a4 {[%emt 0:03:25]} a6 {[%emt 0:00:34]} 34. Kd3 {[%emt 0:00:14]} b5 {[%emt 0:00:28]} 35. axb5 {[%emt 0:00:22]} axb5 {[%emt 0:00:05]} 36. g4 {[%emt 0:02:22]} fxg4 {[%emt 0:00:49]} 37. fxg4 {[%emt 0:00:17]} Bc5 {[%emt 0:00:14]} 38. Bb2 {[%emt 0:01:00]} Bg1 {[%emt 0:00:22]} 39. Bc3 {[%emt 0:00:39]} Bh2 {[%emt 0:00:10]} 40. Bd4 {[%emt 0:02:07]} Bf4 {[%emt 0:00:12]} 41. Bf2 {[%emt 0:31:17]} Bd6 {[%emt 0:30:15]} 42. Bd4 {[%emt 0:00:28]} Be7 {[%emt 0:00:08]} 43. Bc3 {[%emt 0:02:07]} Bd6 {[%emt 0:02:09]} 44. Bd4 {[%emt 0:00:13]} h5 {[%emt 0:01:03]} 45. gxh5 {[%emt 0:00:00]} gxh5 {[%emt 0:00:00]} 46. Bc3 {[%emt 0:00:00]} Bc5 {[%emt 0:00:00]} 47. Bb2 {[%emt 0:00:00]} Bg1 {[%emt 0:00:00]} 48. Bc3 {[%emt 0:00:00]} Bh2 {[%emt 0:00:00]} 49. Bd4 {[%emt 0:00:00]} Bf4 {[%emt 0:00:00]} 50. Bc3 {[%emt 0:00:00]} Bd6 {[%emt 0:00:00]} 51. Bd4 {[%emt 0:00:00]} Bf4 {[%emt 0:00:00]} 52. Bc3 $1 {[%emt 0:00:00]} Bd6 {[%emt 0:00:00]} 53. Bd4 {[%emt 0:00:00]} Bf4 {[%emt 0:00:00] Weighted Error Value: White=0.03 (flawless) /Black=0.03 (flawless) .  Inaccurate:     	White=1     	---        OK:         	White=25    	Black=11     Best:        	---       	Black=1      Strong:       	White=2     	---} 1/2-1/2

[Event "WSTCC-50 2024"]
[Site "Krakow"]
[Date "2024.07.03"]
[Round "2.9"]
[White "Crocker, Philip J"]
[Black "Buckley, Graeme N"]
[Result "1/2-1/2"]
[ECO "A20"]
[WhiteElo "2122"]
[BlackElo "2334"]
[Annotator "RC"]
[PlyCount "148"]
[EventDate "2024.07.01"]
[EventType "team-tourn"]
[EventCountry "POL"]
[SourceTitle "playchess.com"]
[Source "ChessBase"]
[SourceQuality "1"]
[TimeControl "40/5400+30:1800+30"]

1. c4 {[%emt 0:00:15]} e5 {[%emt 0:00:07]} 2. g3 {[%emt 0:00:20]} Nf6 {[%emt 0:00:25]} 3. Bg2 {[%emt 0:00:28]} c6 {[%emt 0:00:16]} 4. Nf3 {[%emt 0:00:42]} e4 {[%emt 0:01:22]} 5. Nd4 {[%emt 0:00:25]} d5 {[%emt 0:06:00]} 6. cxd5 {[%emt 0:00:25]} cxd5 {[%emt 0:02:19]} 7. O-O {[%emt 0:02:17]} Bc5 {[%emt 0:01:33]} 8. Nb3 {[%emt 0:01:08]} Bb6 {[%emt 0:00:13]} 9. d3 {[%emt 0:01:40]} h6 {[%emt 0:22:52]} 10. Nc3 {[%emt 0:06:01]} Bf5 {[%emt 0:10:20]} 11. dxe4 {[%emt 0:03:52]} dxe4 {[%emt 0:00:04]} 12. Qxd8+ {[%emt 0:04:10]} Kxd8 {[%emt 0:00:22]} 13. Bf4 {[%emt 0:17:38]} Nbd7 {[%emt 0:02:40]} 14. Rfd1 {[%emt 0:01:53]} Re8 {[%emt 0:06:37]} 15. Nb5 {[%emt 0:04:49]} Bg4 {[%emt 0:03:25]} 16. Kf1 {[%emt 0:08:06]} g5 {[%emt 0:02:03]} 17. Be3 {[%emt 0:04:51]} Bxe3 {[%emt 0:01:47]} 18. fxe3 {[%emt 0:00:19]} Re5 {[%emt 0:00:50]} 19. Nd6 {[%emt 0:01:55]} Ke7 {[%emt 0:01:00]} 20. Rac1 {[%emt 0:25:54]} Be6 {[%emt 0:00:39]} 21. Nc8+ {[%emt 0:03:39]} Kf8 {[%emt 0:03:11]} 22. Nd6 {[%emt 0:00:48]} Nb6 {[%emt 0:07:01]} 23. Rd4 {[%emt 0:01:37]} Bd5 {[%emt 0:05:20]} 24. Nc5 {[%emt 0:02:20]} Ng4 {[%emt 0:04:43]} 25. Bxe4 {[%emt 0:01:15]} Nxe3+ {[%emt 0:03:28]} 26. Kf2 {[%emt 0:00:38]} Ng4+ {[%emt 0:00:31]} 27. Kg1 {[%emt 0:00:21]} Bxe4 {[%emt 0:03:43]} 28. Rxe4 {[%emt 0:01:45]} Rxe4 {[%emt 0:00:01]} 29. Ncxe4 {[%emt 0:00:24]} Nd5 {[%emt 0:00:57]} 30. b3 {[%emt 0:02:13]} Ke7 {[%emt 0:02:13]} 31. h3 {[%emt 0:00:56]} Nge3 {[%emt 0:00:23]} 32. Nxb7 {[%emt 0:00:41]} f5 {[%emt 0:03:24]} 33. Nc3 {[%emt 0:00:42]} Rb8 {[%emt 0:02:49]} 34. Nxd5+ {[%emt 0:00:34]} Nxd5 {[%emt 0:00:04]} 35. Na5 {[%emt 0:00:32]} Rb5 {[%emt 0:01:20]} 36. Nc6+ {[%emt 0:00:23]} Kf6 {[%emt 0:00:15]} 37. Kf2 {[%emt 0:01:03]} a5 {[%emt 0:02:29]} 38. Nd4 {[%emt 0:00:33]} Rb4 {[%emt 0:00:50]} 39. Rc6+ {[%emt 0:00:47]} Kf7 {[%emt 0:00:58]} 40. Nc2 {[%emt 0:00:51]} Rb7 {[%emt 0:01:19]} 41. Rc5 {[%emt 0:04:45]} Ke6 {[%emt 0:03:01]} 42. Nd4+ {[%emt 0:02:04]} Kd6 {[%emt 0:00:46]} 43. Rc6+ {[%emt 0:02:14]} Kd7 {[%emt 0:00:10]} 44. Rxh6 {[%emt 0:00:32]} Rb4 {[%emt 0:01:14]} 45. Nxf5 {[%emt 0:01:12]} Nc3 {[%emt 0:00:09]} 46. Ra6 {[%emt 0:05:44]} Rb5 {[%emt 0:01:00]} 47. Ne3 {[%emt 0:02:16]} Re5 {[%emt 0:02:01]} 48. Nc4 {[%emt 0:01:49]} Rxe2+ {[%emt 0:01:29]} 49. Kf3 {[%emt 0:00:12]} Rxa2 {[%emt 0:00:33]} 50. Rxa5 {[%emt 0:00:28]} Rh2 {[%emt 0:00:19]} 51. Rxg5 {[%emt 0:03:06]} Rxh3 {[%emt 0:00:06]} 52. Re5 {[%emt 0:01:10]} Rh8 {[%emt 0:01:28]} 53. g4 {[%emt 0:01:14]} Rf8+ {[%emt 0:02:04]} 54. Kg3 {[%emt 0:00:38]} Rb8 {[%emt 0:00:08]} 55. Nd2 {[%emt 0:01:07]} Kd6 {[%emt 0:03:12]} 56. Re1 {[%emt 0:00:17]} Kd5 {[%emt 0:01:36]} 57. g5 {[%emt 0:00:42]} Rb4 {[%emt 0:09:05]} 58. Re8 {[%emt 0:00:44]} Kd4 {[%emt 0:00:40]} 59. g6 {[%emt 0:02:16]} Rb6 {[%emt 0:00:13]} 60. Nf3+ {[%emt 0:01:53]} Kd5 {[%emt 0:00:52]} 61. Re5+ {[%emt 0:01:16]} Kd6 {[%emt 0:00:24]} 62. Re3 {[%emt 0:03:26]} Nd5 {[%emt 0:01:00]} 63. Rd3 {[%emt 0:00:44]} Ke6 {[%emt 0:00:08]} 64. Kg4 {[%emt 0:01:20]} Ne7 {[%emt 0:01:36]} 65. Kg5 {[%emt 0:00:37]} Rb5+ {[%emt 0:00:37]} 66. Kh6 {[%emt 0:00:43]} Nf5+ {[%emt 0:00:12]} 67. Kg5 {[%emt 0:01:30]} Ne7+ {[%emt 0:00:04]} 68. Kg4 {[%emt 0:00:33]} Rb4+ {[%emt 0:03:46]} 69. Kg3 {[%emt 0:00:29]} Nxg6 {[%emt 0:01:55]} 70. Nd4+ {[%emt 0:00:24]} Kf6 {[%emt 0:00:11]} 71. Nf3 {[%emt 0:00:37]} Nf4 {[%emt 0:00:58]} 72. Re3 {[%emt 0:00:20]} Nd5 {[%emt 0:00:17]} 73. Rd3 {[%emt 0:00:25]} Nf4 {[%emt 0:00:05]} 74. Re3 {[%emt 0:00:26]} Nd5 {[%emt 0:00:05]} 1/2-1/2

[Event "WSTCC-50 2024"]
[Site "Krakow"]
[Date "2024.07.03"]
[Round "2.9"]
[White "Kirby, Peter J."]
[Black "Rogowski, Jaroslaw"]
[Result "1/2-1/2"]
[ECO "A05"]
[WhiteElo "1984"]
[BlackElo "2149"]
[Annotator "NA RC"]
[PlyCount "52"]
[EventDate "2024.07.01"]
[EventType "team-tourn"]
[EventCountry "POL"]
[SourceTitle "playchess.com"]
[Source "ChessBase"]
[SourceQuality "1"]
[TimeControl "40/5400+30:1800+30"]

1. Nf3 {[%emt 0:00:03]} Nf6 {[%emt 0:00:19]} 2. c4 {[%emt 0:00:06]} c5 {[%emt 0:00:11]} 3. Nc3 {[%emt 0:00:41]} e6 {[%emt 0:00:32]} 4. g3 {[%emt 0:01:50]} Nc6 {[%emt 0:03:17]} 5. Bg2 {[%emt 0:00:32]} Be7 {[%emt 0:04:10]} 6. O-O {[%emt 0:01:02]} O-O {[%emt 0:00:30]} 7. d4 {[%emt 0:01:50]} cxd4 {[%emt 0:06:01]} 8. Nxd4 {[%emt 0:00:12]} a6 {[%emt 0:02:26]} 9. Nb3 {[%emt 0:07:13]} d6 {[%emt 0:02:16]} 10. Bf4 {[%emt 0:05:26]} e5 {[%emt 0:13:12]} 11. Bg5 {[%emt 0:02:01]} Be6 {[%emt 0:00:37]} 12. Bxf6 {[%emt 0:04:53]} Bxf6 {[%emt 0:02:54]} 13. Nd5 {[%emt 0:00:22]} Rc8 {[%emt 0:02:49]} 14. Rc1 {[%emt 0:03:49]} Bg5 {[%emt 0:06:02]} 15. e3 {[%emt 0:01:59]} Ne7 {[%emt 0:12:09]} 16. Qd2 {[%emt 0:04:27]} Nxd5 {[%emt 0:05:13]} 17. Bxd5 {[%emt 0:00:24]} Qb6 {[%emt 0:10:42]} 18. Qa5 {[%emt 0:09:11]} Qa7 {[%emt 0:05:42]} 19. Qb4 {[%emt 0:04:05]} Bxd5 {[%emt 0:08:58]} 20. cxd5 {[%emt 0:00:04]} Rxc1 {[%emt 0:05:37]} 21. Rxc1 {[%emt 0:01:28]} Bxe3 {[%emt 0:01:26]} 22. fxe3 {[%emt 0:00:15]} Qxe3+ {[%emt 0:00:02]} 23. Kg2 {[%emt 0:01:55]} Qe2+ {[%emt 0:00:20]} 24. Kg1 {[%emt 0:00:54]} Qe3+ {[%emt 0:00:20]} 25. Kg2 {[%emt 0:00:06]} Qe2+ {[%emt 0:00:30]} 26. Kg1 {[%emt 0:00:02]} Qe3+ 1/2-1/2

[Event "WSTCC-50 2024"]
[Site "Krakow"]
[Date "2024.07.03"]
[Round "2.10"]
[White "Hjartarson, Johann"]
[Black "Lampe, Dirk"]
[Result "1-0"]
[ECO "E91"]
[WhiteElo "2472"]
[BlackElo "2158"]
[Annotator "TA"]
[PlyCount "89"]
[EventDate "2024.07.01"]
[EventType "team-tourn"]
[EventCountry "POL"]
[SourceTitle "playchess.com"]
[Source "ChessBase"]
[SourceQuality "1"]
[TimeControl "40/5400+30:1800+30"]

{[%evp 16,89,42,36,86,66,101,59,73,56,63,57,85,78,75,77,79,11,20,16,16,15,23,14,20,12,24,2,33,30,119,106,248,240,243,249,323,295,302,310,309,306,294,311,293,242,318,314,739,725,685,375,428,380,409,433,448,438,442,439,487,448,500,330,571,565,561,566,904,897,878,894,854,849,1388,1366]} 1. d4 {[%emt 0:00:05]} Nf6 {[%emt 0:00:12]} 2. c4 {[%emt 0:00:06]} g6 {[%emt 0:00:11]} 3. Nc3 {[%emt 0:00:06]} Bg7 {[%emt 0:00:10]} 4. e4 {[%emt 0:00:08]} d6 {[%emt 0:00:11]} 5. Nf3 {[%emt 0:00:06][%cal Bg1f3,Bf3d2,Bd2b3][%mdl 32]} O-O {[%emt 0:00:17]} 6. Be2 {[%emt 0:00:06]} Nbd7 {[%emt 0:00:54]} 7. O-O {[%emt 0:00:13]} e5 {[%emt 0:00:12]} 8. Be3 {[%emt 0:04:07]} Qe7 {[%emt 0:00:59]} 9. d5 {[%emt 0:00:35]} c5 {[%emt 0:01:21]} (9... a5 $14) 10. Nd2 {[%emt 0:03:19]} Kh8 {[%emt 0:01:37]} 11. a3 {[%emt 0:05:02]} Ng8 {[%emt 0:01:43] White is slightly better.} 12. b4 {[%emt 0:00:28]} b6 {[%emt 0:02:17]} 13. Nb3 {[%emt 0:00:55]} Bh6 {[%emt 0:17:18]} 14. Bxh6 {[%emt 0:01:30]} Nxh6 {[%emt 0:00:06]} 15. Qd2 {[%emt 0:00:39]} Ng8 {[%emt 0:01:53][%cal Bh6g8,Bg8f6,Bf6d7,Bd7e5][%mdl 32]} 16. bxc5 {[%emt 0:00:28]} (16. Bd3 $16) 16... Nxc5 $11 {[%emt 0:00:59]} 17. Nxc5 {[%emt 0:00:10]} bxc5 {[%emt 0:00:25]} 18. Rab1 {[%emt 0:00:49]} f5 {[%emt 0:00:32]} 19. Rb3 {[%emt 0:05:02]} Nf6 {[%emt 0:03:02]} 20. exf5 {[%emt 0:01:12]} gxf5 {[%emt 0:01:31]} 21. f4 {[%emt 0:02:40]} Nd7 {[%emt 0:12:04]} 22. Nb5 {[%emt 0:02:53][%cal Bc3b5,Bb5c7,Bc7e6][%mdl 32]} Rf6 {[%emt 0:34:08]} (22... exf4 $11 {remains equal.} 23. Nc7 (23. Rxf4 Ne5 $11) 23... Rb8 24. Qb2+ Qe5 25. Rxb8 Nxb8) 23. Qb2 {[%emt 0:11:30] [#] aiming for Nc7. White is much more active.} a6 {[%emt 0:14:52] A mistake that costs the game.} (23... Rb8 $16) 24. Nc7 $18 {[%emt 0:00:29]} Ra7 {[%emt 0:00:05]} 25. Ne6 {[%emt 0:00:09]} Ra8 {[%emt 0:02:27]} 26. fxe5 {[%emt 0:06:34]} Nxe5 {[%emt 0:01:21]} 27. Rb8 {[%emt 0:01:40]} Qa7 {[%emt 0:01:44]} 28. Rb1 {[%emt 0:01:11]} Rg6 {[%emt 0:00:10]} 29. Rxa8 {[%emt 0:09:02]} Qxa8 {[%emt 0:00:02]} 30. Bh5 {[%emt 0:05:26]} Rg8 {[%emt 0:00:19]} 31. Bf7 {[%emt 0:01:18]} Rg7 {[%emt 0:02:26]} (31... Bxe6 32. dxe6 Kg7 33. Bxg8 Qxg8) 32. Nxg7 {[%emt 0:03:26]} Kxg7 {[%emt 0:00:02]} 33. Bh5 {[%emt 0:00:25]} Bd7 {[%emt 0:00:15]} 34. Qc3 {[%emt 0:00:56]} Qd8 {[%emt 0:00:42]} 35. Qg3+ {[%emt 0:04:15]} Kh6 {[%emt 0:00:27]} 36. Be2 {[%emt 0:00:33]} Qf6 {[%emt 0:00:06]} 37. Qf4+ {[%emt 0:00:29]} Kg7 {[%emt 0:00:14]} 38. Rb7 {[%emt 0:00:28][%cal Bb1b7,Bb7a7,Ba7a6,Ba6a8][%mdl 32]} Kf8 {[%emt 0:00:19]} 39. g3 {[%emt 0:01:01] [#] Hoping for Ra7.} Ke8 $2 {[%emt 0:01:22]} (39... a5 {might work better.} 40. Rb8+ Kg7) 40. Ra7 {[%emt 0:00:39] White is clearly winning.} Kd8 {[%emt 0:00:48]} 41. Rxa6 {[%emt 0:31:32]} Kc7 {[%emt 0:30:01]} 42. Qd2 {[%emt 0:02:26] Qa5+ would kill now.} Kd8 {[%emt 0:00:00]} 43. Ra8+ {[%emt 0:00:00]} Ke7 {[%emt 0:00:00]} 44. Qe3 {[%emt 0:00:00]} Be8 {[%emt 0:00:00]} 45. a4 {[%emt 0:00:00] Weighted Error Value: White=0.30/Black=0.40.  Mistake:       	White=1     	Black=4      Inaccurate:     	White=2     	Black=5      OK:         	White=16    	Black=8      Best:        	White=3     	Black=2} 1-0